fUSD/lending_fUSD_20251014
["ID","MTS","AMOUNT","RATE_DAILY","PERIOD"]
[391289834,1760470268606,-500.0,0.00016712,2]
[391289835,1760470268617,-500.0,0.00016712,2]
[391289836,1760470268627,-500.0,0.00016712,2]
[391289837,1760470268637,-500.0,0.00016712,2]
[391289838,1760470268647,-655.98,0.00016712,2]
[391289839,1760470268656,-500.0,0.00016712,2]
[391289840,1760470268666,-500.0,0.00016712,2]
[391289841,1760470268675,-500.0,0.00016712,2]
[391289842,1760470268684,-500.0,0.00016712,2]
[391289843,1760470268694,-500.0,0.00016712,2]
[391289844,1760470268704,-1633.7,0.00016712,2]
[391289845,1760470268714,-198.180624,0.00016712,2]
[391289846,1760470268724,-896.35,0.00016712,2]
[391289847,1760470268734,-500.0,0.00016712,2]
[391289848,1760470268744,-500.0,0.00016712,2]
[391289849,1760470268754,-500.0,0.00016712,2]
[391289850,1760470268763,-450.75,0.00016712,2]
[391289851,1760470268772,-519.42,0.00016712,2]
[391289852,1760470268783,-336.51,0.00016712,2]
[391289853,1760470268793,-616.34,0.00016712,2]
[391289854,1760470268803,-500.0,0.00016712,2]
[391289855,1760470268814,-1895.04,0.00016712,2]
[391289856,1760470268824,-3094.15,0.00016712,2]
[391289857,1760470268834,-151.0,0.00016712,2]
[391289858,1760470268844,-902.08,0.00016712,2]
[391289859,1760470268853,-500.0,0.00016712,2]
[391289860,1760470268864,-650.29,0.00016712,2]
[391289861,1760470268874,-500.0,0.00016712,2]
[391289862,1760470268884,-500.0,0.00016712,2]
[391289863,1760470268894,-500.0,0.00016712,2]
[391289864,1760470268903,-804.94,0.00016712,2]
[391289865,1760470268912,-546.43,0.00016712,2]
[391289866,1760470268922,-546.43,0.00016712,2]
[391289867,1760470268931,-538.73,0.00016712,2]
[391289868,1760470268941,-1022.96,0.00016712,2]
[391289869,1760470268951,-2935.13,0.00016712,2]
[391289870,1760470268960,-500.0,0.00016712,2]
[391289871,1760470268970,-500.0,0.00016712,2]
[391289872,1760470268980,-500.0,0.00016712,2]
[391289873,1760470268989,-537.84,0.00016712,2]
[391289874,1760470268999,-500.0,0.00016712,2]
[391289875,1760470269011,-2764.87,0.00016712,2]
[391289876,1760470269021,-151.0,0.00016712,2]
[391289877,1760470269031,-151.0,0.00016712,2]
[391289878,1760470269041,-659.88,0.00016712,2]
[391289879,1760470269051,-1330.56,0.00016712,2]
[391289880,1760470269062,-1018.27,0.00016712,2]
[391289881,1760470269072,-680.65,0.00016712,2]
[391289882,1760470269081,-408.03827591,0.00016712,2]
[391289883,1760470269091,-5752.66,0.00016712,2]
[391289884,1760470269103,-1055.39,0.00016712,2]
[391289885,1760470269116,-1431.61,0.00016712,2]
[391289886,1760470269126,-500.0,0.00016712,2]
[391289887,1760470269137,-942.55,0.00016712,2]
[391289888,1760470269147,-1763.11,0.00016712,2]
[391289889,1760470269158,-598.18,0.00016712,2]
[391289890,1760470269168,-1451.44,0.00016712,2]
[391289891,1760470269179,-500.0,0.00016712,2]
[391289892,1760470269189,-834.05,0.00016712,2]
[391289893,1760470269198,-411.52889152,0.00016712,2]
[391289894,1760470269208,-500.0,0.00016712,2]
[391289895,1760470269218,-151.0,0.00016712,2]
[391289896,1760470269227,-151.0,0.00016712,2]
[391289897,1760470269237,-500.0,0.00016712,2]
[391289898,1760470269247,-798.19,0.00016712,2]
[391289899,1760470269256,-1343.45,0.00016712,2]
[391289900,1760470269266,-500.0,0.00016712,2]
[391289901,1760470269275,-2054.64,0.00016712,2]
[391289902,1760470269285,-500.0,0.00016712,2]
[391289903,1760470269294,-500.0,0.00016712,2]
[391289904,1760470269304,-500.0,0.00016712,2]
[391289905,1760470269314,-633.93,0.00016712,2]
[391289906,1760470269323,-711.68,0.00016712,2]
[391289907,1760470269333,-1171.32,0.00016712,2]
[391289908,1760470269343,-500.0,0.00016712,2]
[391289909,1760470269352,-1888.62,0.00016712,2]
[391289910,1760470269364,-1025.61,0.00016712,2]
[391289911,1760470269374,-500.0,0.00016712,2]
[391289912,1760470269385,-500.0,0.00016712,2]
[391289913,1760470269396,-567.23,0.00016712,2]
[391289914,1760470269406,-513.73,0.00016712,2]
[391289915,1760470269415,-500.0,0.00016712,2]
[391289916,1760470269426,-525.61,0.00016712,2]
[391289917,1760470269435,-500.0,0.00016712,2]
[391289918,1760470269445,-981.77,0.00016712,2]
[391289919,1760470269455,-568.54,0.00016712,2]
[391289920,1760470269466,-500.0,0.00016712,2]
[391289921,1760470269475,-805.2,0.00016712,2]
[391289922,1760470269487,-1873.93,0.00016712,2]
[391289923,1760470269496,-819.79,0.00016712,2]
[391289924,1760470269505,-500.0,0.00016712,2]
[391289925,1760470269515,-2176.18,0.00016712,2]
[391289926,1760470269524,-1418.22,0.00016712,2]
[391289927,1760470269534,-609.99,0.00016712,2]
[391289928,1760470269543,-275.30885285,0.00016712,2]
[391289929,1760470269552,-590.55,0.00016712,2]
[391289930,1760470269561,-1424.18,0.00016712,2]
[391289931,1760470269571,-2034.47,0.00016712,2]
[391289932,1760470269580,-638.62,0.00016712,2]
[391289933,1760470269589,-685.15,0.00016712,2]
[391289934,1760470269598,-500.0,0.00016712,2]
[391289935,1760470269607,-689.67,0.00016712,2]
[391289936,1760470269619,-1814.26,0.00016712,2]
[391289937,1760470269628,-500.0,0.00016712,2]
[391289938,1760470269638,-2635.51,0.00016712,2]
[391289939,1760470269647,-500.0,0.00016712,2]
[391289940,1760470269655,-729.39,0.00016712,2]
[391289941,1760470269665,-500.0,0.00016712,2]
[391289942,1760470269674,-500.0,0.00016712,2]
[391289943,1760470269684,-755.17,0.00016712,2]
[391289944,1760470269693,-500.0,0.00016712,2]
[391289945,1760470269703,-500.0,0.00016712,2]
[391289946,1760470269712,-501.16,0.00016712,2]
[391289947,1760470269722,-711.22,0.00016712,2]
[391289948,1760470269732,-500.0,0.00016712,2]
[391289949,1760470269741,-1272.84,0.00016712,2]
[391289950,1760470269751,-151.0,0.00016712,2]
[391289951,1760470269760,-151.0,0.00016712,2]
[391289952,1760470269770,-500.0,0.00016712,2]
[391289953,1760470269779,-890.49,0.00016712,2]
[391289954,1760470269788,-151.0,0.00016712,2]
[391289955,1760470269798,-719.2,0.00016712,2]
[391289956,1760470269807,-151.0,0.00016712,2]
[391289957,1760470269816,-151.0,0.00016712,2]
[391289958,1760470269828,-1582.93,0.00016712,2]
[391289959,1760470269838,-151.0,0.00016712,2]
[391289960,1760470269847,-857.66,0.00016712,2]
[391289961,1760470269856,-10435.78,0.00016712,2]
[391289962,1760470269867,-151.0,0.00016712,2]
[391289963,1760470269878,-151.0,0.00016712,2]
[391289964,1760470269887,-500.0,0.00016712,2]
[391289965,1760470269897,-534.4,0.00016712,2]
[391289966,1760470269906,-500.0,0.00016712,2]
[391289967,1760470269916,-500.0,0.00016712,2]
[391289968,1760470269925,-300.77735906,0.00016712,2]
[391289969,1760470269935,-500.0,0.00016712,2]
[391289970,1760470269944,-1323.5,0.00016712,2]
[391289971,1760470269953,-1398.63,0.00016712,2]
[391289972,1760470269963,-500.0,0.00016712,2]
[391289973,1760470269972,-1198.39,0.00016712,2]
[391289974,1760470269981,-215.40494321,0.00016712,2]
[391289975,1760470269990,-500.0,0.00016712,2]
[391289976,1760470269999,-620.29,0.00016712,2]
[391289977,1760470270008,-2396.21,0.00016712,2]
[391289978,1760470270017,-500.0,0.00016712,2]
[391289979,1760470270029,-1951.49,0.00016712,2]
[391289980,1760470270039,-719.31,0.00016712,2]
[391289981,1760470270048,-500.0,0.00016712,2]
[391289982,1760470270057,-1554.16,0.00016712,2]
[391289983,1760470270066,-500.0,0.00016712,2]
[391289984,1760470270075,-500.0,0.00016712,2]
[391289985,1760470270084,-1628.17,0.00016712,2]
[391289986,1760470270093,-1045.31,0.00016712,2]
[391289987,1760470270102,-578.55,0.00016712,2]
[391289988,1760470270111,-500.0,0.00016712,2]
[391289989,1760470270123,-500.0,0.00016712,2]
[391289990,1760470270131,-500.0,0.00016712,2]
[391289991,1760470270141,-1167.36,0.00016712,2]
[391289992,1760470270150,-151.0,0.00016712,2]
[391289993,1760470270159,-151.0,0.00016712,2]
[391289994,1760470270168,-567.89,0.00016712,2]
[391289995,1760470270177,-1328.93,0.00016712,2]
[391289996,1760470270186,-500.0,0.00016712,2]
[391289997,1760470270196,-151.0,0.00016712,2]
[391289998,1760470270205,-500.0,0.00016712,2]
[391289999,1760470270216,-1687.88,0.00016712,2]
[391290000,1760470270226,-3319.42,0.00016712,2]
[391290001,1760470270235,-500.0,0.00016712,2]
[391290002,1760470270245,-643.75,0.00016712,2]
[391290003,1760470270254,-500.0,0.00016712,2]
[391290004,1760470270263,-540.66579703,0.00016712,2]
[391290005,1760470270273,-1001.34,0.00016712,2]
[391290006,1760470270282,-2393.74,0.00016712,2]
[391290007,1760470270291,-686.47,0.00016712,2]
[391290008,1760470270300,-1897.76,0.00016712,2]
[391290009,1760470270310,-400.51124371,0.00016712,2]
[391290010,1760470270319,-500.0,0.00016712,2]
[391290011,1760470270328,-756.77,0.00016712,2]
[391290012,1760470270338,-673.0,0.00016712,2]
[391290013,1760470270347,-500.0,0.00016712,2]
[391290014,1760470270356,-500.0,0.00016712,2]
[391290015,1760470270368,-863.92,0.00016712,2]
[391290016,1760470270377,-850.77,0.00016712,2]
[391290017,1760470270391,-500.0,0.00016712,2]
[391290018,1760470270401,-500.63,0.00016712,2]
[391290019,1760470270410,-500.0,0.00016712,2]
[391290020,1760470270419,-2023.15,0.00016712,2]
[391290021,1760470270430,-712.64,0.00016712,2]
[391290022,1760470270439,-740.79,0.00016712,2]
[391290023,1760470270448,-1575.06,0.00016712,2]
[391290024,1760470270459,-500.0,0.00016712,2]
[391290025,1760470270468,-500.0,0.00016712,2]
[391290026,1760470270478,-500.0,0.00016712,2]
[391290027,1760470270487,-1658.9,0.00016712,2]
[391290028,1760470270496,-271.55018788,0.00016712,2]
[391290029,1760470270506,-500.0,0.00016712,2]
[391290030,1760470270515,-625.32,0.00016712,2]
[391290031,1760470270524,-500.0,0.00016712,2]
[391290032,1760470270533,-651.34,0.00016712,2]
[391290033,1760470270542,-620.77,0.00016712,2]
[391290034,1760470270551,-500.0,0.00016712,2]
[391290035,1760470270560,-1232.03,0.00016712,2]
[391290036,1760470270570,-2642.66,0.00016712,2]
[391290037,1760470270579,-1600.88,0.00016712,2]
[391290038,1760470270588,-500.0,0.00016712,2]
[391290039,1760470270597,-500.0,0.00016712,2]
[391290040,1760470270620,-500.0,0.00016712,2]
[391290041,1760470270776,-500.0,0.00016712,2]
[391290042,1760470270785,-659.92,0.00016712,2]
[391290043,1760470270794,-1435.69,0.00016712,2]
[391290044,1760470270803,-3517.82,0.00016712,2]
[391290045,1760470270812,-500.0,0.00016712,2]
[391290046,1760470270821,-500.0,0.00016712,2]
[391290047,1760470270830,-972.35,0.00016712,2]
[391290048,1760470270839,-500.0,0.00016712,2]
[391290049,1760470270848,-625.47,0.00016712,2]
[391290050,1760470270857,-500.0,0.00016712,2]
[391290051,1760470270868,-500.0,0.00016712,2]
[391290052,1760470270877,-500.0,0.00016712,2]
[391290053,1760470270887,-151.0,0.00016712,2]
[391290054,1760470270895,-500.0,0.00016712,2]
[391290055,1760470270904,-500.0,0.00016712,2]
[391290056,1760470270913,-500.0,0.00016712,2]
[391290057,1760470270922,-500.0,0.00016712,2]
[391290058,1760470270931,-546.28,0.00016712,2]
[391290059,1760470270940,-587.64,0.00016712,2]
[391290060,1760470270949,-2105.78,0.00016712,2]
[391290061,1760470270958,-500.0,0.00016712,2]
[391290062,1760470270968,-500.0,0.00016712,2]
[391290063,1760470270977,-2603.49,0.00016712,2]
[391290064,1760470270986,-500.0,0.00016712,2]
[391290065,1760470270995,-500.0,0.00016712,2]
[391290066,1760470271005,-647.17,0.00016712,2]
[391290067,1760470271014,-500.0,0.00016712,2]
[391290068,1760470271023,-500.0,0.00016712,2]
[391290069,1760470271033,-500.0,0.00016712,2]
[391290070,1760470271042,-500.0,0.00016712,2]
[391290071,1760470271050,-151.0,0.00016712,2]
[391290072,1760470271060,-502.84,0.00016712,2]
[391290073,1760470271069,-500.0,0.00016712,2]
[391290074,1760470271078,-6059.59,0.00016712,2]
[391290075,1760470271088,-768.7,0.00016712,2]
[391290076,1760470271097,-151.0,0.00016712,2]
[391290077,1760470271106,-1848.08,0.00016712,2]
[391290078,1760470271117,-151.0,0.00016712,2]
[391290079,1760470271126,-500.0,0.00016712,2]
[391290080,1760470271135,-151.0,0.00016712,2]
[391290081,1760470271145,-742.68,0.00016712,2]
[391290082,1760470271154,-1628.55,0.00016712,2]
[391290083,1760470271163,-500.0,0.00016712,2]
[391290084,1760470271172,-500.0,0.00016712,2]
[391290085,1760470271182,-151.0,0.00016712,2]
[391290086,1760470271190,-1839.83,0.00016712,2]
[391290087,1760470271199,-1438.2,0.00016712,2]
[391290088,1760470271208,-500.0,0.00016712,2]
[391290089,1760470271218,-867.7,0.00016712,2]
[391290090,1760470271227,-151.0,0.00016712,2]
[391290091,1760470271238,-500.0,0.00016712,2]
[391290092,1760470271247,-151.0,0.00016712,2]
[391290093,1760470271257,-2842.34,0.00016712,2]
[391290094,1760470271266,-273.71074246,0.00016712,2]
[391290095,1760470271275,-668.29,0.00016712,2]
[391290096,1760470271284,-500.0,0.00016712,2]
[391290097,1760470271294,-1275.83,0.00016712,2]
[391290098,1760470271303,-577.73,0.00016712,2]
[391290099,1760470271313,-500.0,0.00016712,2]
[391290100,1760470271323,-602.78772,0.00016712,2]
[391290101,1760470271332,-660.44,0.00016712,2]
[391290102,1760470271342,-151.0,0.00016712,2]
[391290103,1760470271352,-2184.34,0.00016712,2]
[391290104,1760470271362,-822.43,0.00016712,2]
[391290105,1760470271374,-500.0,0.00016712,2]
[391290106,1760470271386,-423.76006509,0.00016712,2]
[391290107,1760470271396,-602.78772,0.00016712,2]
[391290108,1760470271406,-823.92,0.00016712,2]
[391290109,1760470271414,-151.0,0.00016712,2]
[391290110,1760470271425,-151.0,0.00016712,2]
[391290111,1760470271435,-527.39830333,0.00016712,2]
[391290112,1760470271444,-602.78772,0.00016712,2]
[391290113,1760470271455,-1163.95,0.00016712,2]
[391290114,1760470271465,-568.93,0.00016712,2]
[391290115,1760470271474,-1583.46,0.00016712,2]
[391290116,1760470271483,-151.0,0.00016712,2]
[391290117,1760470271493,-602.78772,0.00016712,2]
[391290118,1760470271502,-500.0,0.00016712,2]
[391290119,1760470271511,-640.87,0.00016712,2]
[391290120,1760470271521,-500.0,0.00016712,2]
[391290121,1760470271530,-500.0,0.00016712,2]
[391290122,1760470271539,-540.10411338,0.00016712,2]
[391290123,1760470271548,-547.36,0.00016712,2]
[391290124,1760470271557,-500.0,0.00016712,2]
[391290125,1760470271567,-500.0,0.00016712,2]
[391290126,1760470271575,-635.26,0.00016712,2]
[391290127,1760470271584,-2511.43,0.00016712,2]
[391290128,1760470271593,-1535.43,0.00016712,2]
[391290129,1760470271602,-1241.62,0.00016712,2]
[391290130,1760470271612,-879.44,0.00016712,2]
[391290131,1760470271623,-883.03,0.00016712,2]
[391290132,1760470271631,-3858.25,0.00016712,2]
[391290133,1760470271640,-1178.98,0.00016712,2]
[391290134,1760470271649,-1286.04,0.00016712,2]
[391290135,1760470271658,-540.2,0.00016712,2]
[391290136,1760470271668,-1672.26,0.00016712,2]
[391290137,1760470271677,-500.0,0.00016712,2]
[391290138,1760470271686,-844.9,0.00016712,2]
[391290139,1760470271695,-957.32,0.00016712,2]
[391290140,1760470271705,-1660.48,0.00016712,2]
[391290141,1760470271714,-500.0,0.00016712,2]
[391290142,1760470271723,-500.0,0.00016712,2]
[391290143,1760470271732,-500.0,0.00016712,2]
[391290144,1760470271741,-1500.57,0.00016712,2]
[391290145,1760470271750,-634.75,0.00016712,2]
[391290146,1760470271759,-500.0,0.00016712,2]
[391290147,1760470271768,-500.0,0.00016712,2]
[391290148,1760470271778,-500.0,0.00016712,2]
[391290149,1760470271787,-3980.53,0.00016712,2]
[391290150,1760470271795,-500.0,0.00016712,2]
[391290151,1760470271804,-2823.14,0.00016712,2]
[391290152,1760470271813,-500.0,0.00016712,2]
[391290153,1760470271822,-500.0,0.00016712,2]
[391290154,1760470271831,-2072.52,0.00016712,2]
[391290155,1760470271840,-500.0,0.00016712,2]
[391290156,1760470271849,-151.0,0.00016712,2]
[391290157,1760470271859,-1494.42,0.00016712,2]
[391290158,1760470271870,-500.0,0.00016712,2]
[391290159,1760470271880,-500.0,0.00016712,2]
[391290160,1760470271889,-1706.92,0.00016712,2]
[391290161,1760470271898,-151.0,0.00016712,2]
[391290162,1760470271908,-500.0,0.00016712,2]
[391290163,1760470271917,-151.0,0.00016712,2]
[391290164,1760470271926,-5357.39,0.00016712,2]
[391290165,1760470271936,-500.0,0.00016712,2]
[391290166,1760470271945,-500.0,0.00016712,2]
[391290167,1760470271954,-500.0,0.00016712,2]
[391290168,1760470271963,-236.1522,0.00016712,2]
[391290169,1760470271972,-1221.47,0.00016712,2]
[391290170,1760470271982,-500.0,0.00016712,2]
[391290171,1760470271991,-978.13,0.00016712,2]
[391290172,1760470272000,-2213.18,0.00016712,2]
[391290173,1760470272009,-151.0,0.00016712,2]
[391290174,1760470272019,-2116.87,0.00016712,2]
[391290175,1760470272028,-500.0,0.00016712,2]
[391290176,1760470272037,-151.0,0.00016712,2]
[391290177,1760470272047,-1456.16,0.00016712,2]
[391290178,1760470272056,-500.0,0.00016712,2]
[391290179,1760470272066,-2039.98,0.00016712,2]
[391290180,1760470272074,-151.0,0.00016712,2]
[391290181,1760470272084,-1164.19,0.00016712,2]
[391290182,1760470272093,-1799.54,0.00016712,2]
[391290183,1760470272102,-500.0,0.00016712,2]
[391290184,1760470272111,-240.66079177,0.00016712,2]
[391290185,1760470272120,-151.0,0.00016712,2]
[391290186,1760470272130,-500.0,0.00016712,2]
[391290187,1760470272139,-962.37,0.00016712,2]
[391290188,1760470272148,-2207.73,0.00016712,2]
[391290189,1760470272157,-500.0,0.00016712,2]
[391290190,1760470272167,-500.0,0.00016712,2]
[391290191,1760470272176,-939.32,0.00016712,2]
[391290192,1760470272186,-970.05,0.00016712,2]
[391290193,1760470272195,-2163.0,0.00016712,2]
[391290194,1760470272204,-747.36,0.00016712,2]
[391290195,1760470272213,-151.0,0.00016712,2]
[391290196,1760470272223,-151.0,0.00016712,2]
[391290197,1760470272232,-566.61,0.00016712,2]
[391290198,1760470272241,-1711.37,0.00016712,2]
[391290199,1760470272251,-1861.39,0.00016712,2]
[391290200,1760470272260,-151.0,0.00016712,2]
[391290201,1760470272269,-739.01,0.00016712,2]
[391290202,1760470272279,-151.0,0.00016712,2]
[391290203,1760470272288,-500.0,0.00016712,2]
[391290204,1760470272297,-500.0,0.00016712,2]
[391290205,1760470272306,-151.0,0.00016712,2]
[391290206,1760470272316,-151.0,0.00016712,2]
[391290207,1760470272326,-500.0,0.00016712,2]
[391290208,1760470272335,-500.0,0.00016712,2]
[391290209,1760470272344,-2132.14,0.00016712,2]
[391290210,1760470272354,-2856.1,0.00016712,2]
[391290211,1760470272365,-151.0,0.00016712,2]
[391290212,1760470272374,-508.36,0.00016712,2]
[391290213,1760470272386,-500.0,0.00016712,2]
[391290214,1760470272397,-546.08,0.00016712,2]
[391290215,1760470272407,-500.0,0.00016712,2]
[391290216,1760470272417,-500.0,0.00016712,2]
[391290217,1760470272427,-737.9,0.00016712,2]
[391290218,1760470272438,-500.0,0.00016712,2]
[391290219,1760470272448,-745.7,0.00016712,2]
[391290220,1760470272457,-997.08,0.00016712,2]
[391290221,1760470272467,-500.0,0.00016712,2]
[391290222,1760470272476,-500.0,0.00016712,2]
[391290223,1760470272485,-2061.78,0.00016712,2]
[391290224,1760470272494,-2150.3,0.00016712,2]
[391290225,1760470272503,-2000.2,0.00016712,2]
[391290226,1760470272512,-151.0,0.00016712,2]
[391290227,1760470272521,-151.0,0.00016712,2]
[391290228,1760470272530,-620.16,0.00016712,2]
[391290229,1760470272539,-8052.01,0.00016712,2]
[391290230,1760470272548,-3572.92,0.00016712,2]
[391290231,1760470272557,-500.0,0.00016712,2]
[391290232,1760470272566,-684.54,0.00016712,2]
[391290233,1760470272575,-3061.31,0.00016712,2]
[391290234,1760470272585,-3541.6,0.00016712,2]
[391290235,1760470272594,-938.18,0.00016712,2]
[391290236,1760470272603,-7503.9,0.00016712,2]
[391290237,1760470272612,-1487.6,0.00016712,2]
[391290238,1760470272622,-500.0,0.00016712,2]
[391290239,1760470272631,-500.0,0.00016712,2]
[391290240,1760470272641,-500.0,0.00016712,2]
[391290241,1760470272650,-500.0,0.00016712,2]
[391290242,1760470272659,-151.0,0.00016712,2]
[391290243,1760470272667,-500.0,0.00016712,2]
[391290244,1760470272678,-256.461261,0.00016712,2]
[391290245,1760470272687,-500.0,0.00016712,2]
[391290246,1760470272696,-500.0,0.00016712,2]
[391290247,1760470272705,-256.461261,0.00016712,2]
[391290248,1760470272714,-500.0,0.00016712,2]
[391290249,1760470272723,-500.0,0.00016712,2]
[391290250,1760470272732,-500.0,0.00016712,2]
[391290251,1760470272740,-151.0,0.00016712,2]
[391290252,1760470272750,-500.0,0.00016712,2]
[391290253,1760470272759,-256.461261,0.00016712,2]
[391290254,1760470272768,-151.0,0.00016712,2]
[391290255,1760470272777,-1043.82,0.00016712,2]
[391290256,1760470272786,-256.461261,0.00016712,2]
[391290257,1760470272795,-4028.9,0.00016712,2]
[391290258,1760470272804,-1169.86,0.00016712,2]
[391290259,1760470272813,-500.0,0.00016712,2]
[391290260,1760470272822,-1439.27,0.00016712,2]
[391290261,1760470272831,-949.53,0.00016712,2]
[391290262,1760470272840,-500.0,0.00016712,2]
[391290263,1760470272849,-500.0,0.00016712,2]
[391290264,1760470272858,-728.12,0.00016712,2]
[391290265,1760470272869,-500.0,0.00016712,2]
[391290266,1760470272878,-500.0,0.00016712,2]
[391290267,1760470272887,-500.0,0.00016712,2]
[391290268,1760470272896,-2516.02,0.00016712,2]
[391290269,1760470272905,-1022.31,0.00016712,2]
[391290270,1760470272914,-2298.98,0.00016712,2]
[391290271,1760470272923,-500.0,0.00016712,2]
[391290272,1760470272932,-1563.02,0.00016712,2]
[391290273,1760470272941,-500.0,0.00016712,2]
[391290274,1760470272950,-500.0,0.00016712,2]
[391290275,1760470272959,-500.0,0.00016712,2]
[391290276,1760470272968,-500.0,0.00016712,2]
[391290277,1760470272977,-8556.41,0.00016712,2]
[391290278,1760470272986,-500.0,0.00016712,2]
[391290279,1760470272995,-500.0,0.00016712,2]
[391290280,1760470273004,-500.0,0.00016712,2]
[391290281,1760470273013,-500.0,0.00016712,2]
[391290282,1760470273022,-784.26,0.00016712,2]
[391290283,1760470273031,-767.04,0.00016712,2]
[391290284,1760470273039,-2910.67,0.00016712,2]
[391290285,1760470273048,-151.0,0.00016712,2]
[391290286,1760470273057,-1704.56,0.00016712,2]
[391290287,1760470273066,-500.0,0.00016712,2]
[391290288,1760470273076,-500.0,0.00016712,2]
[391290289,1760470273086,-500.0,0.00016712,2]
[391290290,1760470273095,-151.0,0.00016712,2]
[391290291,1760470273104,-805.53,0.00016712,2]
[391290292,1760470273114,-844.08,0.00016712,2]
[391290293,1760470273123,-151.0,0.00016712,2]
[391290294,1760470273132,-500.0,0.00016712,2]
[391290295,1760470273141,-1349.7,0.00016712,2]
[391290296,1760470273150,-1008.94,0.00016712,2]
[391290297,1760470273159,-500.0,0.00016712,2]
[391290298,1760470273168,-2166.86,0.00016712,2]
[391290299,1760470273178,-151.0,0.00016712,2]
[391290300,1760470273187,-500.0,0.00016712,2]
[391290301,1760470273197,-1434.57,0.00016712,2]
[391290302,1760470273206,-736.6,0.00016712,2]
[391290303,1760470273215,-555.68,0.00016712,2]
[391290304,1760470273224,-645.28,0.00016712,2]
[391290305,1760470273235,-500.0,0.00016712,2]
[391290306,1760470273244,-322.093332,0.00016712,2]
[391290307,1760470273253,-630.95,0.00016712,2]
[391290308,1760470273262,-500.0,0.00016712,2]
[391290309,1760470273271,-322.093332,0.00016712,2]
[391290310,1760470273281,-151.0,0.00016712,2]
[391290311,1760470273290,-1040.12,0.00016712,2]
[391290312,1760470273299,-322.093332,0.00016712,2]
[391290313,1760470273309,-590.69,0.00016712,2]
[391290314,1760470273318,-1310.52,0.00016712,2]
[391290315,1760470273327,-1413.57,0.00016712,2]
[391290316,1760470273336,-500.0,0.00016712,2]
[391290317,1760470273346,-966.64,0.00016712,2]
[391290318,1760470273354,-322.093332,0.00016712,2]
[391290319,1760470273365,-639.65,0.00016712,2]
[391290320,1760470273375,-4638.38,0.00016712,2]
[391290321,1760470273388,-151.0,0.00016712,2]
[391290322,1760470273400,-577.65,0.00016712,2]
[391290323,1760470273410,-151.0,0.00016712,2]
[391290324,1760470273419,-2962.26,0.00016712,2]
[391290325,1760470273430,-1137.18,0.00016712,2]
[391290326,1760470273439,-151.0,0.00016712,2]
[391290327,1760470273448,-699.56,0.00016712,2]
[391290328,1760470273458,-1123.21,0.00016712,2]
[391290329,1760470273467,-500.0,0.00016712,2]
[391290330,1760470273476,-151.0,0.00016712,2]
[391290331,1760470273485,-151.0,0.00016712,2]
[391290332,1760470273494,-825.23,0.00016712,2]
[391290333,1760470273504,-500.0,0.00016712,2]